bitfinex/quotes_SOLUSD_20220129
["timestamp","ask_amount","ask_price","bid_price","bid_amount"]
[1643457067591,6.0,96.533,96.47,6.0]
[1643457067781,6.0,96.533,96.471,0.25]
[1643457067982,6.0,96.532,96.471,0.25]
[1643457068182,24.03875609,96.531,96.471,0.25]
[1643457068383,24.8945,96.53,96.471,0.25]
[1643457068583,6.0,96.52,96.471,0.25]
[1643457068786,0.25,96.519,96.471,0.25]
[1643457068983,0.25,96.519,96.461,25.145026]
[1643457068984,0.25,96.519,96.462,0.25]
[1643457069384,0.25,96.519,96.46,1.442226]
[1643457069584,0.25,96.519,96.449,1.442226]
[1643457069785,24.4231,96.519,96.449,1.442226]
[1643457069983,24.4231,96.519,96.43,14.96]
[1643457069984,6.0,96.509,96.452,1.442226]
[1643457070185,6.0,96.509,96.451,1.442226]
[1643457070383,25.04731286,96.508,96.448,37.12296]
[1643457070786,25.04731286,96.508,96.449,0.25]
[1643457070986,6.0,96.498,96.449,0.25]
[1643457071389,0.25,96.497,96.448,37.12296]
[1643457071984,0.25,96.497,96.441,1.442226]
[1643457072183,0.25,96.497,96.442,0.25]
[1643457072383,25.088,96.497,96.442,1.692226]
[1643457072586,25.088,96.497,96.442,0.25]
[1643457072987,25.088,96.497,96.442,34.64382895]
[1643457073386,25.088,96.497,96.442,34.39382895]
[1643457076090,6.0,96.487,96.442,34.39382895]
[1643457076291,18.64001373,96.486,96.442,34.39382895]
[1643457076692,18.64001373,96.486,96.443,0.25]
[1643457076895,0.25,96.486,96.443,0.25]
[1643457077791,0.25,96.496,96.443,0.25]
[1643457077993,20.03608637,96.496,96.443,0.25]
[1643457078194,20.03608637,96.496,96.442,34.39382895]
[1643457078394,6.0,96.486,96.442,34.39382895]
[1643457078795,0.25,96.485,96.442,34.39382895]
[1643457082625,0.25,96.495,96.442,34.39382895]
[1643457083124,0.25,96.495,96.427,22.8732]
[1643457083328,0.25,96.495,96.428,0.25]
[1643457083526,6.0,96.486,96.428,0.25]
[1643457083726,0.25,96.495,96.428,0.25]
[1643457083929,0.25,96.485,96.437,6.0]
[1643457084126,0.25,96.495,96.437,6.0]
[1643457084326,6.0,96.486,96.438,0.25]
[1643457084728,0.25,96.485,96.424,1.442226]
[1643457084928,23.0586,96.485,96.421,1.442226]
[1643457085127,6.0,96.475,96.42,14.96]
[1643457085328,23.0586,96.474,96.42,14.96]
[1643457085627,6.0,96.464,96.42,14.96]
[1643457085831,0.25,96.463,96.421,37.23673851]
[1643457086229,6.0,96.464,96.422,0.25]
[1643457086429,22.8086,96.474,96.422,0.25]
[1643457086829,0.25,96.473,96.422,0.25]
[1643457087232,6.0,96.464,96.422,0.25]
[1643457087730,6.25,96.463,96.422,0.25]
[1643457088835,6.25,96.463,96.421,0.25]
[1643457089632,6.25,96.463,96.421,37.2931104]
[1643457092534,0.25,96.463,96.421,37.2931104]
[1643457092937,0.25,96.473,96.421,37.2931104]
[1643457093536,21.36692384,96.473,96.431,6.0]
[1643457094039,21.36692384,96.473,96.436,6.0]
[1643457094237,21.36692384,96.473,96.427,1.442226]
[1643457094537,21.36692384,96.473,96.426,1.442226]
[1643457094736,21.36692384,96.473,96.427,1.442226]
[1643457094944,21.36692384,96.473,96.427,0.25]
[1643457095137,21.36692384,96.473,96.427,1.442226]
[1643457095339,21.36692384,96.473,96.428,0.25]
[1643457095539,21.36692384,96.473,96.426,1.442226]
[1643457095739,21.36692384,96.473,96.427,0.25]
[1643457096141,21.36692384,96.473,96.427,1.692226]
[1643457096340,21.36692384,96.473,96.427,0.25]
[1643457096940,21.36692384,96.473,96.426,0.25]
[1643457097141,0.25,96.473,96.427,1.442226]
[1643457097339,0.25,96.473,96.428,0.25]
[1643457097739,0.25,96.473,96.428,1.692226]
[1643457097944,0.25,96.473,96.428,0.25]
[1643457099849,0.25,96.473,96.426,1.442226]
[1643457100444,0.25,96.473,96.424,1.442226]
[1643457100643,0.25,96.473,96.426,1.442226]
[1643457101045,0.25,96.473,96.424,1.442226]
[1643457101244,45.63096941,96.474,96.426,1.442226]
[1643457101444,45.63096941,96.474,96.425,1.692226]
[1643457102245,45.63096941,96.474,96.426,1.442226]
[1643457102650,45.63096941,96.474,96.425,1.442226]
[1643457103148,45.63096941,96.474,96.424,1.442226]
[1643457103751,0.25,96.473,96.423,1.442226]
[1643457103948,0.25,96.473,96.425,1.442226]
[1643457104349,0.25,96.473,96.423,1.442226]
[1643457104549,0.25,96.473,96.425,1.442226]
[1643457105355,0.25,96.473,96.426,0.25]
[1643457105549,0.25,96.473,96.428,1.442226]
[1643457105751,0.25,96.473,96.429,1.692226]
[1643457105950,0.25,96.473,96.429,1.442226]
[1643457106349,0.25,96.473,96.42,38.07023344]
[1643457106350,0.25,96.473,96.43,1.442226]
[1643457106554,0.25,96.473,96.429,1.442226]
[1643457106949,0.25,96.473,96.431,1.442226]
[1643457107450,0.25,96.473,96.42,38.07023344]
[1643457107451,6.0,96.464,96.429,1.442226]
[1643457107650,6.0,96.464,96.426,1.442226]
[1643457107853,0.25,96.463,96.426,1.442226]
[1643457108353,6.0,96.464,96.426,1.442226]
[1643457108754,6.0,96.464,96.429,1.442226]
[1643457108953,6.0,96.464,96.431,1.442226]
[1643457109154,6.0,96.464,96.43,1.442226]
[1643457109553,6.0,96.464,96.434,1.442226]
[1643457109754,6.0,96.464,96.435,1.692226]
[1643457110052,6.0,96.464,96.435,1.442226]
[1643457110253,6.0,96.464,96.436,0.25]
[1643457110656,0.25,96.463,96.435,1.442226]
[1643457111054,0.25,96.463,96.423,1.442226]
[1643457111256,24.7132,96.463,96.423,1.442226]
[1643457111456,24.7132,96.463,96.422,1.442226]
[1643457111654,6.0,96.453,96.422,1.442226]
[1643457111855,6.0,96.453,96.427,1.442226]
[1643457112053,6.0,96.485,96.426,1.442226]
[1643457112254,24.0799,96.484,96.429,1.442226]
[1643457112456,6.0,96.48,96.429,1.442226]
[1643457112653,22.56970318,96.473,96.429,1.442226]
[1643457112860,0.25,96.472,96.43,1.442226]
[1643457113060,6.0,96.463,96.43,1.442226]
[1643457115484,6.0,96.463,96.429,1.442226]
[1643457115687,6.0,96.463,96.427,1.442226]
[1643457115885,6.0,96.463,96.431,1.442226]
[1643457116089,0.25,96.462,96.429,1.442226]
[1643457116486,0.25,96.462,96.416,1.442226]
[1643457116686,6.25,96.462,96.416,1.442226]
[1643457116886,6.25,96.462,96.421,1.442226]
[1643457117285,6.25,96.462,96.419,1.442226]
[1643457117686,6.25,96.462,96.412,35.75868121]
[1643457117687,6.25,96.462,96.418,1.442226]
[1643457118288,6.25,96.462,96.391,2.88057764]
[1643457118289,6.25,96.462,96.414,1.442226]
[1643457118687,6.25,96.462,96.413,1.442226]
[1643457118886,6.25,96.462,96.414,42.57140014]
[1643457119088,6.25,96.462,96.415,1.442226]
[1643457119287,22.5094,96.461,96.416,0.25]
[1643457119687,6.0,96.451,96.416,0.25]
[1643457119889,0.25,96.45,96.412,1.442226]
[1643457120088,0.25,96.45,96.414,0.25]
[1643457120288,0.25,96.45,96.413,1.692226]
[1643457120490,3.02216577,96.45,96.413,1.692226]
[1643457120790,3.02216577,96.45,96.414,0.25]
[1643457121087,3.02216577,96.45,96.413,1.442226]
[1643457121287,3.02216577,96.45,96.414,0.25]
[1643457121793,3.02216577,96.45,96.383,5.76840133]
[1643457121794,3.02216577,96.45,96.409,1.442226]
[1643457122491,3.02216577,96.45,96.41,1.442226]
[1643457122693,3.02216577,96.45,96.409,1.442226]
[1643457122892,3.02216577,96.45,96.407,1.442226]
[1643457123293,3.02216577,96.45,96.408,0.25]
[1643457123493,3.02216577,96.45,96.408,1.692226]
[1643457123693,3.02216577,96.45,96.408,1.442226]
[1643457123895,6.0,96.44,96.408,1.442226]
[1643457124093,3.02216577,96.45,96.409,0.25]
[1643457124495,3.02216577,96.45,96.409,1.692226]
[1643457124695,3.02216577,96.45,96.409,0.25]
[1643457124898,3.02216577,96.45,96.409,1.692226]
[1643457125094,0.25,96.45,96.409,1.692226]
[1643457125296,0.25,96.46,96.409,1.692226]
[1643457125698,0.25,96.46,96.411,1.442226]
[1643457125900,0.25,96.46,96.41,1.442226]
[1643457126096,23.00075313,96.45,96.409,1.442226]
[1643457126296,23.00075313,96.45,96.408,1.442226]
[1643457126701,23.00075313,96.45,96.41,1.442226]
[1643457127096,23.00075313,96.45,96.406,1.442226]
[1643457127298,23.00075313,96.45,96.407,0.25]
[1643457127496,0.25,96.449,96.406,1.442226]
[1643457127899,0.25,96.449,96.403,47.53600549]
[1643457128097,24.1047,96.449,96.404,0.25]
[1643457128296,24.1047,96.449,96.404,1.692226]
[1643457128499,0.25,96.449,96.404,0.25]
[1643457129999,0.25,96.449,96.404,1.692226]
[1643457130199,0.25,96.449,96.402,1.442226]
[1643457130400,0.25,96.449,96.403,0.25]
[1643457131600,0.25,96.449,96.401,1.692226]
[1643457131800,0.25,96.449,96.401,0.25]
[1643457132401,0.25,96.449,96.401,1.692226]
[1643457133002,0.25,96.449,96.402,1.442226]
[1643457133402,0.25,96.449,96.403,0.25]
[1643457134303,0.25,96.449,96.401,1.442226]
[1643457134304,0.25,96.449,96.402,0.25]
[1643457134502,0.25,96.449,96.411,6.0]
[1643457138607,6.0,96.44,96.411,6.0]
[1643457139008,6.0,96.44,96.404,1.442226]
[1643457139209,6.0,96.44,96.395,1.442226]
[1643457139210,0.25,96.439,96.395,1.442226]
[1643457139410,0.25,96.439,96.393,1.442226]
[1643457139610,6.25,96.439,96.394,1.442226]
[1643457140409,22.6764,96.438,96.394,1.442226]
[1643457140610,6.0,96.428,96.394,1.442226]
[1643457140812,0.25,96.427,96.393,1.442226]
[1643457141110,0.25,96.427,96.392,37.88353898]
[1643457141711,0.25,96.427,96.392,36.44131298]
[1643457142112,0.25,96.431,96.392,36.44131298]
[1643457142513,0.25,96.431,96.393,1.442226]
[1643457142713,0.25,96.431,96.392,1.442226]
[1643457143513,0.25,96.431,96.391,1.442226]
[1643457143713,0.25,96.431,96.391,7.442226]
[1643457143916,0.25,96.431,96.391,1.442226]
[1643457144115,6.0,96.428,96.391,1.442226]
[1643457144315,6.0,96.428,96.39,6.0]
[1643457144316,0.25,96.427,96.392,1.442226]
[1643457144514,0.25,96.427,96.39,7.442226]
[1643457145115,6.0,96.426,96.39,7.442226]
[1643457145415,0.25,96.425,96.39,6.0]
[1643457145816,0.25,96.425,96.39,1.442226]
[1643457146018,0.25,96.425,96.354,2.88768359]
[1643457146019,24.8209,96.425,96.381,1.442226]
[1643457146314,2.95669142,96.424,96.377,1.442226]
[1643457146518,6.0,96.414,96.377,1.442226]
[1643457146715,22.7551,96.413,96.375,1.442226]
[1643457146915,23.0051,96.413,96.372,1.442226]
[1643457147117,6.0,96.403,96.373,1.442226]
[1643457147316,0.25,96.402,96.372,1.442226]
[1643457147516,0.25,96.402,96.367,1.442226]
[1643457147715,0.25,96.402,96.36,1.442226]
[1643457148316,0.25,96.402,96.361,1.442226]
[1643457148515,0.25,96.402,96.362,1.442226]
[1643457148715,0.25,96.402,96.363,1.442226]
[1643457148915,0.25,96.412,96.363,1.442226]
[1643457149317,0.25,96.412,96.362,1.442226]
[1643457149516,6.0,96.403,96.362,1.442226]
[1643457149715,6.0,96.403,96.358,1.442226]
[1643457149915,0.25,96.402,96.358,1.442226]
[1643457150118,0.25,96.402,96.359,0.25]
[1643457150319,0.25,96.402,96.358,1.442226]
[1643457150516,0.25,96.402,96.355,1.442226]
[1643457150716,0.25,96.402,96.353,1.442226]
[1643457150915,24.2404,96.402,96.351,1.442226]
[1643457151317,24.2404,96.402,96.35,1.442226]
[1643457151517,24.2404,96.402,96.349,1.442226]
[1643457151720,6.0,96.392,96.348,41.14729905]
[1643457151918,24.2404,96.402,96.348,41.14729905]
[1643457152118,0.25,96.391,96.348,41.14729905]
[1643457152319,24.2404,96.402,96.348,41.14729905]
[1643457154021,6.0,96.392,96.348,41.14729905]
[1643457154421,0.25,96.391,96.348,41.14729905]
[1643457155823,0.25,96.391,96.342,1.442226]
[1643457156224,0.25,96.391,96.34,16.402226]
[1643457156225,24.339,96.391,96.34,16.402226]
[1643457156426,24.339,96.391,96.34,14.96]
[1643457156926,24.339,96.391,96.341,39.88611359]
[1643457157528,24.339,96.391,96.34,14.96]
[1643457158526,24.339,96.391,96.341,35.0549725]
[1643457161531,6.0,96.381,96.332,1.442226]
[1643457161730,6.0,96.381,96.331,0.25]
[1643457161932,0.25,96.38,96.333,0.25]
[1643457162130,0.25,96.38,96.329,1.442226]
[1643457162532,0.25,96.38,96.331,42.91188542]
[1643457163132,0.25,96.39,96.331,42.91188542]
[1643457163332,6.0,96.381,96.331,42.91188542]
[1643457163634,21.2655414,96.385,96.331,42.91188542]
[1643457164634,21.2655414,96.385,96.327,1.442226]
[1643457164835,6.0,96.375,96.31,14.96]
[1643457165236,0.25,96.374,96.31,14.96]
[1643457165635,22.9939,96.374,96.311,37.23750843]
[1643457165835,22.9939,96.374,96.312,0.25]
[1643457166036,6.0,96.364,96.312,0.25]
[1643457166236,23.157,96.363,96.312,0.25]
[1643457166637,23.157,96.363,96.311,37.23750843]
[1643457168838,23.157,96.363,96.31,14.96]
[1643457169039,6.0,96.353,96.297,1.442226]
[1643457169240,0.25,96.352,96.294,1.442226]
[1643457169441,0.25,96.352,96.296,1.442226]
[1643457169643,0.25,96.352,96.294,1.442226]
[1643457169840,4.07632755,96.351,96.295,44.70743848]
[1643457170243,0.25,96.35,96.295,46.14966448]
[1643457170442,0.25,96.35,96.295,44.70743848]
[1643457171243,0.25,96.35,96.296,0.25]
[1643457171564,0.25,96.35,96.296,1.692226]
[1643457172265,0.25,96.351,96.296,0.25]
[1643457172463,0.25,96.351,96.296,1.692226]
[1643457172965,0.25,96.351,96.296,0.25]
[1643457173163,22.70748586,96.351,96.296,0.25]
[1643457173965,22.70748586,96.351,96.296,1.692226]
[1643457174665,22.70748586,96.351,96.297,1.442226]
[1643457174867,0.25,96.351,96.298,0.25]
[1643457175065,0.25,96.351,96.307,6.0]
[1643457175365,25.1167,96.378,96.308,24.4073]
[1643457175565,6.0,96.368,96.318,6.0]
[1643457175765,0.25,96.367,96.319,0.25]
[1643457175967,0.25,96.367,96.311,1.442226]
[1643457176164,0.25,96.367,96.31,1.442226]
[1643457176365,0.25,96.367,96.311,0.25]
[1643457176766,18.82912948,96.374,96.311,0.25]
[1643457176767,0.25,96.373,96.311,0.25]
[1643457177667,0.25,96.373,96.311,1.442226]
[1643457177867,0.25,96.377,96.318,6.0]
[1643457178066,0.25,96.377,96.321,6.0]
[1643457178668,0.25,96.377,96.318,6.0]
[1643457178868,0.25,96.377,96.319,6.25]
[1643457179568,0.25,96.377,96.319,0.25]
[1643457180169,6.0,96.368,96.319,0.25]
[1643457180368,0.25,96.367,96.319,0.25]
[1643457180569,0.25,96.367,96.32,6.0]
[1643457181669,0.25,96.377,96.32,6.0]
[1643457183873,6.0,96.368,96.32,6.0]
[1643457184276,0.25,96.367,96.32,6.0]
[1643457185078,0.25,96.367,96.319,0.25]
[1643457185278,0.25,96.377,96.319,0.25]
[1643457186778,6.0,96.368,96.319,0.25]
[1643457186978,6.0,96.368,96.319,6.25]
[1643457187177,0.25,96.367,96.319,6.0]
[1643457187579,0.25,96.367,96.318,6.0]
[1643457187778,0.25,96.367,96.319,0.25]
[1643457189082,0.25,96.377,96.319,0.25]
[1643457189480,6.0,96.368,96.319,0.25]
[1643457189882,0.25,96.367,96.319,0.25]
[1643457190883,0.25,96.377,96.319,0.25]
[1643457191686,23.23996879,96.388,96.319,0.25]
[1643457191889,23.23996879,96.388,96.319,23.0686]
[1643457192087,23.23996879,96.388,96.33,37.01671428]
[1643457192988,15.57,96.41,96.331,2.89609428]
[1643457193187,6.0,96.4,96.341,6.0]
[1643457193386,0.25,96.399,96.342,0.25]
[1643457193587,6.25,96.399,96.342,0.25]
[1643457193986,24.6008,96.398,96.346,6.0]
[1643457194191,6.0,96.399,96.347,0.25]
[1643457194387,6.0,96.388,96.344,6.0]
[1643457194589,6.0,96.388,96.342,9.14609428]
[1643457194788,6.0,96.388,96.348,2.89609428]
[1643457195191,6.0,96.388,96.349,0.25]
[1643457195591,23.7016,96.421,96.349,0.25]
[1643457195592,23.7016,96.421,96.359,46.63538776]
[1643457195791,22.7429,96.42,96.36,0.25]
[1643457195994,22.7429,96.42,96.369,6.0]
[1643457196391,22.7429,96.42,96.37,6.25]
[1643457196594,22.7429,96.42,96.37,0.25]
[1643457196992,22.7429,96.42,96.371,6.0]
[1643457197192,0.25,96.419,96.371,6.0]
[1643457197392,0.25,96.419,96.372,0.25]
[1643457199816,0.25,96.419,96.361,2.89609428]
[1643457200015,6.0,96.41,96.359,46.63538776]
[1643457200217,6.0,96.41,96.36,0.25]
[1643457200421,0.25,96.409,96.36,0.25]
[1643457202318,0.25,96.419,96.36,0.25]
[1643457202518,6.0,96.41,96.36,0.25]
[1643457202719,6.0,96.4,96.344,0.25]
[1643457203120,6.25,96.399,96.341,0.25]
[1643457203319,0.25,96.399,96.341,0.25]
[1643457203521,0.25,96.399,96.341,22.845]
[1643457203722,0.25,96.399,96.341,60.46770653]
[1643457204320,0.25,96.408,96.341,60.46770653]
[1643457205320,6.0,96.399,96.341,60.46770653]
[1643457205723,0.25,96.398,96.341,60.46770653]
[1643457206121,0.25,96.398,96.341,37.62270653]
[1643457206322,0.25,96.398,96.327,1.442226]
[1643457206523,22.9,96.398,96.318,1.442226]
[1643457206722,22.9,96.398,96.313,24.9286]
[1643457206723,22.9,96.398,96.314,1.442226]
[1643457206923,6.0,96.388,96.319,0.25]
[1643457207122,6.0,96.388,96.324,6.0]
[1643457207322,19.3191701,96.387,96.325,45.81319021]
[1643457207522,6.0,96.377,96.325,45.81319021]
[1643457207923,0.25,96.376,96.325,45.81319021]
[1643457208125,6.25,96.376,96.325,45.81319021]
[1643457208324,22.8937,96.375,96.325,45.81319021]
[1643457208726,0.25,96.374,96.325,45.81319021]
[1643457209226,0.25,96.374,96.326,0.25]
[1643457209425,0.25,96.374,96.325,45.81319021]
[1643457209827,6.0,96.365,96.325,45.81319021]
[1643457210027,6.0,96.365,96.319,0.25]
[1643457210230,23.6345,96.364,96.311,0.25]
[1643457210828,0.25,96.363,96.311,0.25]
[1643457211230,0.25,96.363,96.311,43.22282237]
[1643457212030,0.25,96.363,96.311,0.25]
[1643457212230,6.0,96.354,96.311,0.25]
[1643457212631,0.25,96.353,96.311,0.25]
[1643457213232,6.52269885,96.353,96.311,0.25]
[1643457214330,15.575,96.38,96.311,0.25]
[1643457214631,6.0,96.37,96.32,6.0]
[1643457214831,0.25,96.369,96.311,0.25]
[1643457215131,6.25,96.369,96.311,0.25]
[1643457215331,17.84993073,96.368,96.31,14.96]
[1643457215633,6.0,96.358,96.31,14.96]
[1643457215934,0.25,96.357,96.31,14.96]
[1643457216132,6.25,96.357,96.31,14.96]
[1643457217134,6.0,96.357,96.31,14.96]
[1643457217333,0.25,96.356,96.311,0.25]
[1643457217535,0.25,96.356,96.31,14.96]
[1643457219437,23.5159,96.356,96.31,14.96]
[1643457219839,6.0,96.346,96.31,14.96]
[1643457220236,6.0,96.346,96.311,0.25]
[1643457220437,23.2659,96.356,96.311,0.25]
[1643457220638,23.2659,96.356,96.311,35.66775112]
[1643457220936,0.25,96.355,96.311,35.66775112]
[1643457221142,6.0,96.346,96.311,35.66775112]
[1643457221336,0.25,96.355,96.311,35.66775112]
[1643457221836,0.25,96.355,96.311,35.64380937]
[1643457222239,17.84993073,96.368,96.311,35.64380937]
[1643457222940,23.0667,96.367,96.321,6.0]
[1643457223137,23.3167,96.367,96.321,6.0]
[1643457223336,23.0667,96.367,96.322,0.25]
[1643457223537,15.572,96.4,96.322,6.25]
[1643457223937,17.9574002,96.385,96.322,6.25]
[1643457224337,42.1298002,96.385,96.322,6.25]
[1643457224540,42.1298002,96.385,96.323,2.89609428]
[1643457224942,42.1298002,96.385,96.324,0.25]
[1643457225143,0.25,96.384,96.324,0.25]
[1643457225345,0.25,96.384,96.325,2.89609428]
[1643457225545,0.25,96.384,96.327,6.0]
[1643457225743,0.25,96.384,96.326,0.25]
[1643457225945,0.25,96.384,96.328,0.25]
[1643457226545,0.25,96.384,96.325,2.89609428]
[1643457228358,17.9574002,96.385,96.326,0.25]
[1643457228558,15.572,96.4,96.335,6.0]
[1643457228758,24.3636,96.399,96.336,0.25]
[1643457228960,6.0,96.39,96.336,0.25]
[1643457229161,6.0,96.389,96.336,0.25]
[1643457229360,6.0,96.389,96.337,6.0]
[1643457229559,6.0,96.389,96.338,6.0]
[1643457229763,0.25,96.388,96.328,24.5552]
[1643457229959,6.0,96.385,96.329,0.25]
[1643457230160,6.0,96.385,96.338,6.0]
[1643457230364,22.9113,96.384,96.329,0.25]
[1643457230564,6.0,96.374,96.338,6.0]
[1643457230765,0.25,96.373,96.329,0.25]
[1643457230971,6.0,96.374,96.329,0.25]
[1643457231572,22.6613,96.384,96.329,0.25]
[1643457231774,0.25,96.383,96.329,0.25]
[1643457233176,6.0,96.374,96.329,0.25]
[1643457234579,6.0,96.374,96.321,0.25]
[1643457235881,6.0,96.374,96.32,16.402226]
[1643457236485,6.0,96.374,96.32,14.96]
[1643457237484,6.0,96.374,96.316,1.442226]
[1643457237684,0.25,96.383,96.326,6.0]
[1643457237884,6.0,96.374,96.319,1.442226]
[1643457238285,0.25,96.373,96.309,1.442226]
[1643457238485,22.5879,96.373,96.308,24.302226]
[1643457238685,22.5879,96.373,96.31,1.442226]
[1643457238884,5.15595838,96.362,96.309,1.442226]
[1643457239287,5.15595838,96.362,96.29,14.96]
[1643457239288,5.15595838,96.362,96.304,1.442226]
[1643457239486,6.0,96.352,96.301,1.442226]
[1643457239787,0.25,96.351,96.301,7.442226]
[1643457239987,22.5879,96.373,96.302,34.05421549]
[1643457240185,0.25,96.361,96.305,1.442226]
[1643457240387,22.5879,96.373,96.312,6.0]
[1643457240588,0.25,96.372,96.312,6.0]
[1643457240788,6.0,96.363,96.313,0.25]
[1643457241791,6.0,96.363,96.312,6.0]
[1643457241993,6.0,96.363,96.302,34.05421549]
[1643457242817,0.25,96.362,96.303,23.5681]
[1643457243192,0.25,96.362,96.307,1.442226]
[1643457243393,24.5765,96.362,96.308,0.25]
[1643457243591,6.0,96.352,96.306,1.442226]
[1643457243792,0.25,96.362,96.317,103.7]
[1643457243992,0.25,96.362,96.327,6.0]
[1643457244191,6.0,96.383,96.311,1.442226]
[1643457244393,6.25,96.383,96.305,1.442226]
[1643457244992,6.0,96.374,96.304,1.442226]
[1643457245192,6.0,96.373,96.304,1.442226]
[1643457245392,0.25,96.373,96.307,1.442226]
[1643457245593,0.25,96.373,96.317,6.0]
[1643457245791,6.0,96.372,96.318,23.4607]
[1643457245993,6.0,96.372,96.318,23.2107]
[1643457246194,0.25,96.371,96.301,1.442226]
[1643457246392,22.8204,96.371,96.301,1.442226]
[1643457246691,6.0,96.361,96.312,6.0]
[1643457246894,0.25,96.36,96.312,6.0]
[1643457248096,0.25,96.36,96.313,6.0]
[1643457248297,6.0,96.361,96.303,23.6324]
[1643457248494,24.5684,96.36,96.304,0.25]
[1643457248697,24.8184,96.36,96.304,3.14609428]
[1643457248896,24.8184,96.36,96.305,2.89609428]
[1643457249296,24.8184,96.36,96.306,0.25]
[1643457250397,24.8184,96.36,96.304,0.25]
[1643457251196,6.0,96.35,96.304,0.25]
[1643457252196,24.8184,96.36,96.304,0.25]
[1643457252398,24.8184,96.36,96.303,23.6324]
[1643457252399,6.0,96.35,96.303,23.6324]
[1643457252597,6.0,96.35,96.304,0.25]
[1643457252998,0.25,96.349,96.303,23.6324]
[1643457253298,24.6434,96.364,96.303,23.6324]
[1643457253498,6.0,96.354,96.302,34.05421549]
[1643457253698,24.3934,96.353,96.302,34.05421549]
[1643457253898,24.6434,96.353,96.302,34.05421549]
[1643457254099,24.3934,96.353,96.303,0.25]
[1643457254298,24.3934,96.353,96.303,3.14609428]
[1643457254499,24.3934,96.353,96.304,2.89609428]
[1643457254900,24.3934,96.353,96.305,0.25]
[1643457257702,24.3934,96.353,96.304,2.89609428]
[1643457257703,0.25,96.352,96.304,2.89609428]
[1643457257903,0.25,96.352,96.302,34.05421549]
[1643457258104,6.0,96.343,96.302,34.05421549]
[1643457258305,0.25,96.342,96.303,0.25]
[1643457258505,15.575,96.38,96.312,6.0]
[1643457258706,22.8445,96.379,96.312,6.0]
[1643457258905,22.8445,96.379,96.313,0.25]
[1643457259111,22.8445,96.379,96.314,6.0]
[1643457260307,0.25,96.378,96.315,0.25]
[1643457260909,0.25,96.378,96.316,6.0]
[1643457261512,0.25,96.378,96.32,6.0]
[1643457261810,0.25,96.378,96.306,103.7]
[1643457262013,0.25,96.378,96.316,6.0]
[1643457262412,0.25,96.378,96.317,0.25]
[1643457263416,0.25,96.378,96.317,103.95]
[1643457263618,0.25,96.378,96.328,103.7]
[1643457263817,0.25,96.378,96.329,0.25]
[1643457264021,0.25,96.378,96.338,6.0]
[1643457264618,0.25,96.378,96.339,40.36112044]